bitfinex/quotes_ETHUSD_20220215
["timestamp","ask_amount","ask_price","bid_price","bid_amount"]
[1644912302910,0.82116,3045.4,3045.3,0.01836008]
[1644912304855,1.42116,3045.4,3045.3,0.01836008]
[1644912305060,4.1060364,3045.5,3045.3,0.01836008]
[1644912305858,4.1060364,3045.5,3044.8,0.01824783]
[1644912305859,0.02579591,3045.4,3044.8,0.01824783]
[1644912306056,3.2845563,3045.3,3045.2,0.00973986]
[1644912306256,3.5845563,3045.3,3045.2,0.00973986]
[1644912306457,3.8845563,3045.3,3045.2,0.00973986]
[1644912307057,3.8845563,3045.3,3044.8,0.01824783]
[1644912307258,3.8845563,3045.3,3045.1,0.00974025]
[1644912307259,4.1059715,3045.2,3045.1,0.00974025]
[1644912307459,2.4636015,3045.2,3045.1,0.00974025]
[1644912307860,4.1060044,3045.2,3045.1,0.00974025]
[1644912308061,0.50000684,3045.2,3045.1,0.00974025]
[1644912308262,0.50000684,3045.2,3044.8,5.01260658]
[1644912308517,0.50000684,3045.2,3045.0,0.00974052]
[1644912308714,0.50000684,3045.2,3045.0,0.50974052]
[1644912308915,0.50000684,3045.2,3045.0,0.01538177]
[1644912309113,0.50000684,3045.2,3045.0,1.6519263]
[1644912309314,0.02579591,3045.4,3045.0,1.64628505]
[1644912309513,0.02579591,3045.4,3045.0,1.64218578]
[1644912309716,0.02579591,3045.4,3045.1,0.00564125]
[1644912310215,0.84671591,3045.4,3045.1,0.00564125]
[1644912310415,0.03709227,3045.3,3045.1,0.00564125]
[1644912310616,2.46338,3045.2,3045.1,0.00564125]
[1644912311019,1.64202,3045.5,3045.2,3.2]
[1644912311415,0.82081,3045.5,3045.2,3.20564125]
[1644912311616,1.64156,3046.4,3045.2,3.70564125]
[1644912311816,1.64156,3046.4,3045.3,3.50564125]
[1644912312158,4.10437,3046.4,3045.3,0.00564125]
[1644912312360,4.1044005,3046.4,3045.3,3.50564125]
[1644912312556,3.28343,3046.2,3045.3,0.00564125]
[1644912312757,0.8209,3046.0,3045.3,0.00564125]
[1644912312958,0.82092,3045.9,3045.3,0.00564125]
[1644912313357,0.82092,3045.9,3045.8,0.84447264]
[1644912313561,3.2837001,3046.0,3045.8,0.85011389]
[1644912313759,0.82093,3045.9,3045.8,0.00564125]
[1644912313960,3.28375,3046.0,3045.5,0.00974297]
[1644912313961,1.64184,3046.0,3045.5,0.00974297]
[1644912314358,0.3,3046.0,3045.1,0.00564125]
[1644912314558,0.8208992,3045.8,3045.6,0.00974271]
[1644912315159,0.82095,3045.7,3045.6,0.00974271]
[1644912315358,0.8208992,3045.8,3045.6,0.00974271]
[1644912315559,0.8208992,3045.8,3045.5,0.00564125]
[1644912315560,1.6418092,3045.8,3045.5,0.00564125]
[1644912315760,1.6418092,3045.8,3045.5,0.01538422]
[1644912316018,4.2310512,3045.8,3045.5,0.01538422]
[1644912316320,0.821,3045.7,3045.5,0.00974297]
[1644912316718,0.821,3045.7,3045.4,0.02091961]
[1644912316919,0.3,3045.6,3045.4,0.03066271]
[1644912317919,2.4631122,3045.7,3045.4,0.02091961]
[1644912318318,3.60933893,3045.6,3045.4,0.02091961]
[1644912318522,4.20933893,3045.6,3045.4,0.02091961]
[1644912318719,3.91606628,3045.5,3045.4,0.02091961]
[1644912319220,0.6,3045.6,3045.4,0.02091961]
[1644912319419,3.40229257,3045.5,3045.4,0.02091961]
[1644912319660,0.6,3045.6,3045.4,0.02091961]
[1644912321862,0.3,3045.6,3045.4,0.02091961]
[1644912323608,0.6,3045.6,3045.4,0.02091961]
[1644912324407,0.33869469,3045.5,3045.4,0.02091961]
[1644912324608,0.8214011,3045.2,3044.9,0.03898981]
[1644912324808,1.29438,3045.1,3044.9,0.03898981]
[1644912325209,1.29438,3045.1,3044.3,0.00564125]
[1644912325607,1.29438,3045.1,3044.3,1.18452346]
[1644912325808,1.29438,3045.1,3044.4,0.001]
[1644912326009,3.7585623,3045.1,3044.4,0.001]
[1644912326208,1.64268,3045.0,3044.4,0.001]
[1644912326407,2.41568,3045.0,3044.4,0.001]
[1644912326807,3.44650776,3044.9,3044.4,0.001]
[1644912327659,3.44650776,3044.9,3044.1,0.00564125]
[1644912327857,3.44650776,3044.9,3044.7,0.0097477]
[1644912328055,3.74650776,3044.9,3044.7,0.0097477]
[1644912328656,4.21950776,3044.9,3044.1,0.00564125]
[1644912328856,4.21950776,3044.9,3044.7,0.00801508]
[1644912328857,5.61261545,3044.9,3044.7,0.00801508]
[1644912329262,5.61261545,3044.9,3044.2,0.03206514]
[1644912329263,5.6,3044.8,3044.2,0.03206514]
[1644912329456,0.8216,3044.5,3044.2,0.03206514]
[1644912329657,4.19242353,3044.4,3044.2,0.03206514]
[1644912329856,3.68457943,3044.3,3044.1,0.00564125]
[1644912330256,3.98457943,3044.3,3044.1,0.00564125]
[1644912330459,3.98457943,3044.3,3043.8,0.001]
[1644912330657,0.8215342,3044.2,3043.8,0.00664125]
[1644912330907,1.64307,3044.1,3043.8,0.00664125]
[1644912331108,5.10982751,3044.1,3043.7,0.0340459]
[1644912331615,4.10778,3044.1,3043.7,0.0340459]
[1644912331813,3.69862459,3044.0,3043.7,0.0340459]
[1644912332009,3.69862459,3044.0,3043.6,0.03211022]
[1644912332010,1.6432,3043.8,3043.6,0.03211022]
[1644912332213,0.82177,3043.6,3043.3,0.00664125]
[1644912332510,7.69512,3044.3,3043.2,9.51905045]
[1644912332511,1.29477,3043.7,3043.2,9.51905045]
[1644912333115,7.69512,3044.3,3043.3,3.85]
[1644912333116,0.91574249,3043.8,3043.3,3.85]
[1644912333313,0.91574249,3043.8,3043.2,10.38349379]
[1644912333514,0.91574249,3043.8,3043.2,10.3444715]
[1644912333715,0.44766622,3044.3,3043.4,0.0097549]
[1644912334018,4.93013,3044.5,3043.4,0.0097549]
[1644912334019,3.92711179,3044.5,3043.4,0.0097549]
[1644912334321,0.8217667,3043.7,3043.4,0.0097549]
[1644912334515,0.61639243,3043.8,3043.4,0.0097549]
[1644912334754,0.82177,3043.6,3043.2,10.3444715]
[1644912334955,0.03357368,3043.9,3043.4,0.0097549]
[1644912335154,0.03357368,3043.9,3043.7,0.91736851]
[1644912335357,1.64345,3043.8,3043.7,0.91736851]
[1644912335554,2.46527,3044.0,3043.7,0.91736851]
[1644912335756,0.82174,3043.8,3043.5,1.0]
[1644912335955,1.6433734,3043.7,3043.5,1.0]
[1644912336154,3.2867234,3043.7,3043.5,1.0]
[1644912336355,1.22284717,3043.7,3043.6,1.0]
[1644912336557,1.64339,3044.1,3043.6,1.0]
[1644912336759,0.6372,3044.6,3043.7,1.03212566]
[1644912336960,0.295802,3045.1,3043.7,1.03212566]
[1644912337159,0.295802,3045.1,3043.8,8.62396887]
[1644912337160,0.69317314,3044.7,3043.8,8.62396887]
[1644912337359,0.82158,3044.5,3043.7,1.03212566]
[1644912337560,0.7929873,3044.6,3044.0,0.00975332]
[1644912337761,1.61926171,3045.0,3044.0,0.00975332]
[1644912337962,1.39327801,3044.9,3044.0,8.57688917]
[1644912338161,0.82156,3044.5,3044.1,0.001]
[1644912338609,2.49706058,3045.3,3044.3,0.00975253]
[1644912338610,0.03468,3045.2,3044.3,0.00975253]
[1644912338811,1.39311231,3045.1,3044.3,0.01075253]
[1644912339007,0.82132,3045.2,3044.3,0.00975253]
[1644912339208,0.79400529,3045.1,3044.3,0.00975253]
[1644912339408,0.82143,3045.0,3044.5,2.17957189]
[1644912339611,0.473,3045.4,3044.5,2.17957189]
[1644912339612,3.27276889,3045.8,3045.5,0.94619215]
[1644912339808,1.40103866,3045.8,3045.5,0.94619215]
[1644912340009,1.40103866,3045.8,3045.5,1.40618018]
[1644912340010,7.50445617,3045.7,3045.5,1.40618018]
[1644912340211,2.1159292,3045.7,3045.5,1.40618018]
[1644912340410,2.1159292,3045.7,3045.5,2.79047659]
[1644912340411,1.29437,3045.7,3045.5,2.79047659]
[1644912340609,1.29437,3045.7,3045.5,7.09625716]
[1644912340812,1.29437,3045.7,3045.5,8.39242703]
[1644912341010,0.82137,3045.7,3045.5,9.67351484]
[1644912341209,0.82137,3045.7,3045.5,10.95164538]
[1644912341411,0.82137,3045.7,3045.5,12.22297421]
[1644912341609,0.82137,3045.7,3045.5,13.469462]
[1644912341808,0.82137,3045.7,3045.5,14.65503011]
[1644912342008,0.82137,3045.7,3045.5,15.83971104]
[1644912342272,0.82137,3045.7,3045.5,17.0169988]
[1644912342472,0.82137,3045.7,3045.5,18.17092416]
[1644912342671,1.82137,3045.7,3045.5,19.29291104]
[1644912342969,0.3,3045.6,3045.5,21.32987615]
[1644912343170,0.3,3045.6,3045.5,22.32440485]
[1644912343471,0.3,3045.6,3045.5,23.29438823]
[1644912343670,0.3,3045.6,3045.5,24.26318871]
[1644912343870,0.773,3045.6,3045.5,25.22666611]
[1644912344070,0.773,3045.6,3045.5,26.18836915]
[1644912344271,0.473,3045.6,3045.5,27.14741065]
[1644912344471,0.473,3045.6,3045.5,28.10349488]
[1644912344672,0.473,3045.6,3045.5,26.61759203]
[1644912344873,0.473,3045.6,3045.5,27.55060958]
[1644912345077,0.82614713,3045.7,3045.5,28.46470063]
[1644912345470,0.02555159,3045.6,3045.5,29.3734686]
[1644912345673,0.02555159,3045.6,3045.5,30.26656306]
[1644912346108,0.02555159,3045.6,3045.5,31.14368828]
[1644912346308,0.02555159,3045.6,3045.5,32.01726478]
[1644912346707,0.02555159,3045.6,3045.5,32.82871649]
[1644912346909,0.02555159,3045.6,3045.5,33.68484512]
[1644912347312,0.02555159,3045.6,3045.5,34.53298913]
[1644912347512,0.02555159,3045.6,3045.5,35.36309381]
[1644912347809,0.02555159,3045.6,3045.5,36.18403097]
[1644912348209,0.02555159,3045.6,3045.5,36.99994077]
[1644912348411,0.02555159,3045.6,3045.5,37.80875313]
[1644912348812,0.02555159,3045.6,3045.5,38.61372105]
[1644912349010,0.02555159,3045.6,3045.5,39.40804281]
[1644912349211,0.02555159,3045.6,3045.5,40.40804281]
[1644912349512,0.02555159,3045.6,3045.5,61.64419673]
[1644912349761,0.02555159,3045.6,3045.5,43.11668942]
[1644912349960,0.02555159,3045.6,3045.5,43.89652057]
[1644912350165,0.02555159,3045.6,3045.5,44.61777565]
[1644912350559,0.02555159,3045.6,3045.5,45.37247004]
[1644912350761,0.02555159,3045.6,3045.5,47.42420716]
[1644912351262,0.82093,3046.5,3046.0,0.79069974]
[1644912351666,0.82093,3046.5,3045.8,3.20270961]
[1644912351863,2.25162697,3047.0,3045.8,5.14173]
[1644912352060,2.25162697,3047.0,3045.8,6.00363]
[1644912352260,0.60989697,3047.2,3046.5,1.08924309]
[1644912352463,5.99751088,3047.5,3046.5,1.08924309]
[1644912352464,0.60989697,3047.3,3046.5,1.08924309]
[1644912352663,0.8208,3047.1,3046.5,1.08924309]
[1644912352861,0.82082,3046.9,3046.5,1.08522292]
[1644912353063,0.60989697,3047.2,3046.5,1.08522292]
[1644912353415,4.1039567,3047.3,3046.7,1.0]
[1644912353416,0.131491,3047.1,3046.7,1.0]
[1644912353909,3.89307697,3047.3,3046.7,1.0]
[1644912354109,0.82085,3046.9,3046.7,1.0]
[1644912354509,0.00580827,3047.1,3046.7,1.0]
[1644912355315,0.60989697,3047.4,3046.8,4.16851535]
[1644912355511,0.60989697,3047.5,3047.2,1.09220193]
[1644912355711,0.60989697,3047.5,3046.8,2.64125]
[1644912356310,0.60989697,3047.5,3047.2,1.0]
[1644912356510,0.3,3047.6,3047.2,1.0]
[1644912356711,0.00580827,3047.3,3047.2,1.0]
[1644912357367,0.00580827,3047.3,3046.9,1.64113]
[1644912357667,0.60989697,3047.9,3047.0,0.82062]
[1644912357867,0.00580827,3047.3,3047.0,1.69702]
[1644912358263,0.00580827,3047.3,3047.2,1.0]
[1644912358863,1.64138,3047.6,3047.2,1.0]
[1644912359065,0.00580827,3047.4,3047.2,1.0]
[1644912359363,1.38771322,3047.3,3047.1,1.0]
[1644912360470,0.00580827,3047.4,3046.9,3.80134847]
[1644912360668,1.38754443,3047.3,3046.9,3.80134847]
[1644912361321,1.38754443,3047.3,3047.2,1.0]
[1644912361612,1.0,3047.9,3047.2,1.0]
[1644912361814,0.82059,3047.8,3047.4,1.08986313]
[1644912362412,0.164,3048.2,3047.7,1.0]
[1644912362612,0.60989697,3048.5,3047.7,1.0]
[1644912362816,0.82042,3048.7,3048.4,0.93821416]
[1644912363022,0.35579706,3048.8,3048.4,2.03641416]
[1644912363218,0.164,3049.3,3048.5,4.95]
[1644912363414,7.240391,3049.7,3048.5,8.45]
[1644912363415,1.12380188,3049.7,3048.5,8.45]
[1644912363715,0.09549404,3049.7,3048.5,8.45]
[1644912363924,1.97058572,3050.0,3049.1,5.0]
[1644912364114,1.97058572,3050.0,3049.2,4.5]
[1644912364115,1.89833364,3050.0,3049.2,4.5]
[1644912364416,0.82851088,3050.6,3049.6,1.0]
[1644912364660,5.7499,3051.1,3049.4,22.32620303]
[1644912364860,0.81975,3050.7,3050.4,1.19006541]
[1644912365061,0.81975,3050.7,3050.3,0.819807]
[1644912365263,0.81975,3050.7,3049.4,8.23670303]
[1644912365264,1.21252216,3050.1,3049.4,8.23670303]
[1644912365461,1.21252216,3050.1,3049.4,3.5]
[1644912365663,1.21252216,3050.1,3048.8,4.12356682]
[1644912365861,1.21252216,3050.1,3048.9,5.0]
[1644912366062,1.21252216,3050.1,3049.4,0.81988]
[1644912366261,1.21252216,3050.1,3050.0,1.94098131]
[1644912366661,1.21252216,3050.1,3050.0,2.24098131]
[1644912366865,1.21252216,3050.1,3050.0,0.5]
[1644912367263,1.21252216,3050.1,3049.2,1.6399844]
[1644912367865,1.64009,3050.0,3049.2,1.6399844]
[1644912368064,0.81999,3049.9,3049.2,1.6399844]
[1644912368267,1.11999,3049.9,3049.2,1.9399844]
[1644912368510,0.3,3049.8,3049.2,1.9399844]
[1644912369015,0.3,3049.8,3049.4,1.03470716]
[1644912369210,0.3,3049.8,3049.4,2.67457316]
[1644912369410,0.3,3049.8,3049.4,2.97457316]
[1644912369619,1.21252216,3050.1,3049.4,2.97457316]
[1644912369810,1.21252216,3050.1,3049.4,2.67457316]
[1644912370011,1.21252216,3050.1,3049.4,1.85469316]
[1644912370211,1.51252216,3050.1,3049.5,1.6397226]
[1644912370412,1.51252216,3050.1,3049.5,2.4595726]
[1644912370611,1.51252216,3050.1,3049.6,0.3]
[1644912371016,1.51252216,3050.1,3049.4,1.03470716]
[1644912371313,1.27764337,3050.1,3049.5,4.45]
[1644912371518,1.61279995,3051.1,3049.5,4.45]
[1644912371519,0.1638,3051.0,3049.7,24.91]
[1644912371715,0.02311669,3051.1,3049.8,22.81]
[1644912371912,0.02311669,3051.1,3050.0,0.5]
[1644912372183,0.06964,3051.6,3050.2,1.63924]
[1644912372368,1.63925,3051.6,3050.5,0.8196825]
[1644912372668,1.63925,3051.6,3050.3,3.5]
[1644912372669,0.1638,3052.1,3050.6,0.3]
[1644912372867,0.1638,3052.1,3050.3,3.5]
[1644912373267,0.1638,3052.1,3050.7,0.8195754]
[1644912373471,0.61157297,3052.2,3050.8,22.81]
[1644912373670,0.1638,3052.6,3051.3,19.31]
[1644912373671,0.99231088,3052.6,3051.3,19.31]
[1644912373872,0.61144858,3053.2,3051.5,19.31]
[1644912374068,1.96832341,3053.5,3051.8,10.6]
[1644912374269,0.00349126,3053.1,3052.2,0.81898]
[1644912374468,0.61144858,3054.4,3052.5,0.81892]
[1644912374674,0.03345,3054.5,3052.6,4.11119997]
[1644912374874,0.03345,3054.5,3052.6,23.42119997]
[1644912375068,0.03182,3054.7,3052.7,25.31]
[1644912375369,0.03182,3054.7,3053.5,0.8187335]
[1644912375568,0.03345,3054.8,3053.5,1.7372335]
[1644912375770,0.03345,3054.8,3053.5,1.2185]
[1644912376018,0.00576675,3054.3,3053.5,0.9185]
[1644912376417,1.96815364,3053.8,3052.8,5.1813]
[1644912376614,1.96815364,3053.8,3053.0,0.95019699]
[1644912377418,0.00576675,3053.6,3053.0,0.95019699]
[1644912377819,0.00576675,3053.6,3053.1,19.31]
[1644912378016,0.00576675,3053.6,3053.1,0.7397]
[1644912378216,1.96815364,3053.8,3053.2,0.3]
[1644912378619,1.96815364,3053.8,3053.0,4.75019699]
[1644912378819,1.96815364,3053.8,3053.0,0.3]
[1644912379218,2.26815364,3053.8,3052.9,1.9376922]
[1644912379421,2.26815364,3053.8,3053.0,3.27507429]
[1644912379866,2.26815364,3053.8,3053.3,0.9722997]
[1644912380268,0.03384537,3053.7,3053.3,0.9722997]
[1644912380866,0.03959962,3053.7,3053.3,1.2722997]
[1644912381867,0.03384537,3053.7,3053.3,1.2722997]
[1644912382067,0.03959962,3053.7,3053.3,1.2722997]
[1644912383066,0.03384537,3053.7,3053.3,20.5822997]
[1644912383269,0.03959962,3053.7,3053.3,20.5822997]
[1644912383510,0.03959962,3053.7,3053.3,1.2722997]
[1644912383717,0.80373981,3053.2,3053.0,1.06353859]
[1644912384110,0.80373981,3053.2,3053.0,1.36353859]
[1644912384513,0.80373981,3053.2,3052.7,0.13819997]
[1644912384812,0.80373981,3053.2,3052.6,3.45854077]
[1644912385013,0.80373981,3053.2,3052.6,1.07888]
[1644912385216,0.80373981,3053.2,3052.6,4.41518]
[1644912385414,0.80373981,3053.2,3052.7,0.1637]
[1644912385614,0.00575425,3053.1,3052.7,1.80114]
[1644912385812,0.00575425,3053.1,3052.8,0.3]
[1644912386012,0.00575425,3053.1,3052.8,7.9794034]
[1644912386213,0.02301354,3053.5,3052.9,1.73395]
[1644912386416,1.96815364,3053.8,3053.1,5.6]
[1644912386615,1.96815364,3053.8,3053.2,19.783]
[1644912386813,1.96815364,3053.8,3053.4,19.31]
[1644912387014,1.96815364,3053.8,3053.4,0.473]
[1644912387261,1.96815364,3053.8,3053.5,1.0]
[1644912387464,1.96815364,3053.8,3053.4,0.773]
[1644912387660,1.96815364,3053.8,3053.4,0.3]
[1644912387861,1.96815364,3053.8,3053.3,2.43969511]
[1644912388062,2.26815364,3053.8,3053.3,1.53269511]
[1644912388265,1.96815364,3053.8,3053.3,1.53269511]
[1644912389264,0.00568233,3053.7,3053.3,1.84248426]
[1644912389463,0.00568233,3053.7,3053.3,6.11746426]
[1644912390065,0.00915614,3053.7,3053.3,6.11746426]
[1644912390270,0.00347381,3053.7,3053.3,6.10767511]
[1644912390466,0.00915614,3053.7,3053.3,6.11746424]
[1644912390666,0.00915614,3053.7,3053.4,3.26156114]
[1644912391113,0.00915614,3053.7,3053.3,5.72446424]
[1644912391413,0.00347381,3053.7,3053.6,0.5]
[1644912391616,0.00568233,3053.7,3053.5,0.8187978]
[1644912392516,1.97162745,3053.8,3053.4,1.6375955]
[1644912392517,2.27162745,3053.8,3053.4,1.6375955]
[1644912392913,2.27730978,3053.8,3053.4,1.6375955]
[1644912393113,2.27730978,3053.8,3053.7,0.31051297]
[1644912393314,2.27383597,3053.8,3053.7,0.31051297]
[1644912393513,2.27383597,3053.8,3053.7,0.61925158]
[1644912393714,2.27383597,3053.8,3053.7,0.92680729]
[1644912393715,1.96815364,3053.8,3053.7,0.92680729]
[1644912394118,1.96815364,3053.8,3053.7,1.23406727]
[1644912394315,1.96815364,3053.8,3053.7,1.53984862]
[1644912394766,1.96815364,3053.8,3053.7,1.84415133]
[1644912394965,1.96815364,3053.8,3053.7,2.14786259]
[1644912395166,1.96815364,3053.8,3053.7,2.45068667]
[1644912395565,1.96815364,3053.8,3053.7,2.75351075]
[1644912395764,1.96815364,3053.8,3053.7,3.05633483]
[1644912396164,1.96815364,3053.8,3053.7,3.35768028]
[1644912396364,1.96815364,3053.8,3053.7,3.65873]
[1644912396768,1.96815364,3053.8,3053.7,3.95889254]
[1644912396967,1.96815364,3053.8,3053.7,4.25846363]
[1644912397164,1.96815364,3053.8,3053.7,5.07715363]
[1644912397364,1.96815364,3053.8,3053.7,5.37642899]
[1644912397863,1.96815364,3053.8,3053.7,4.85376136]
[1644912398065,1.96815364,3053.8,3053.7,5.15037518]
[1644912398264,1.95942734,3053.8,3053.7,5.44452856]
[1644912398514,1.95942734,3053.8,3053.7,5.73700221]
[1644912398911,1.95942734,3053.8,3053.7,6.0286981]
[1644912399113,1.95942734,3053.8,3053.7,6.31965171]
[1644912399515,1.95942734,3053.8,3053.7,6.6098039]
[1644912399713,1.95942734,3053.8,3053.7,6.8963571]
[1644912400113,1.95942734,3053.8,3053.7,7.18107088]
[1644912400321,1.95942734,3053.8,3053.7,7.46428533]
[1644912400714,1.95942734,3053.8,3053.7,7.74719518]
[1644912400914,1.95942734,3053.8,3053.7,8.02940416]
[1644912401213,1.95942734,3053.8,3053.7,8.31014633]
[1644912401917,1.95942734,3053.8,3053.7,8.86734856]
[1644912402167,1.95942734,3053.8,3053.7,9.14464256]
[1644912402364,1.95942734,3053.8,3053.7,9.42177391]
[1644912402565,0.00171163,3053.9,3053.7,14.0490931]
[1644912402768,0.00684538,3054.4,3053.8,24.7471]
[1644912402966,0.00175152,3055.6,3054.1,1.63657]
[1644912403165,0.00175152,3055.6,3054.2,21.18494936]
[1644912403367,0.00175152,3055.6,3054.2,9.4610345]
[1644912403567,0.00175152,3055.6,3054.3,2.89487507]
[1644912403766,0.00175152,3055.6,3054.7,0.5]
[1644912403967,0.00175152,3055.6,3054.9,0.8183573]
[1644912404169,0.00175152,3055.6,3054.9,1.6057573]
[1644912404366,0.00175152,3055.6,3054.9,2.6057573]
[1644912404770,0.00175152,3055.6,3054.9,0.27482794]
[1644912404966,0.00566094,3055.4,3054.8,4.7114788]
[1644912405268,0.00566094,3055.4,3055.0,0.81821]
[1644912405566,0.00566094,3055.4,3055.1,0.8181936]
[1644912405766,0.00175152,3055.6,3055.1,0.8181936]
[1644912406218,0.81835,3055.3,3055.1,0.8181936]
[1644912406417,0.00566094,3055.4,3055.1,0.8181936]
[1644912406616,0.00566094,3055.4,3055.1,4.3691767]
[1644912406816,0.00566094,3055.4,3055.1,4.03152447]
[1644912407020,0.00175152,3055.6,3055.1,0.8181936]
[1644912407222,0.00566094,3055.4,3055.1,1.1181936]
[1644912408223,0.00175152,3055.6,3055.1,2.1181936]
[1644912408423,0.00566094,3055.4,3055.1,2.1181936]
[1644912408621,0.00566094,3055.4,3055.1,0.96850985]
[1644912408821,0.00566094,3055.4,3055.0,1.6363872]
[1644912409421,0.00175152,3055.6,3055.1,3.33951005]
[1644912409669,0.00566094,3055.4,3055.1,0.81821]
[1644912409871,0.00566094,3055.4,3055.0,1.6363872]
[1644912410368,0.00566094,3055.4,3055.0,0.3]
[1644912410567,0.00175152,3055.6,3055.0,0.3]
[1644912410772,0.00175152,3055.6,3055.2,19.31]
[1644912410970,0.00566094,3055.4,3055.3,3.5]
[1644912411170,0.00566094,3055.4,3055.3,1.0]
[1644912411772,0.00175152,3055.6,3055.3,1.0]
[1644912411968,0.00175152,3055.6,3055.4,1.12029539]
[1644912412171,0.00566094,3055.5,3055.4,1.12029539]
[1644912412968,0.00175152,3055.6,3055.4,1.42029539]
[1644912413169,0.00175152,3055.6,3055.5,0.81811]
[1644912413415,0.00741246,3055.6,3055.5,0.81811]
[1644912413618,0.00741246,3055.6,3055.4,1.42029539]
[1644912414115,0.00741246,3055.6,3055.4,1.09480331]
[1644912414318,0.00175152,3055.6,3055.4,1.09480331]
[1644912414518,0.00175152,3055.6,3055.4,1.09294895]
[1644912415417,0.00175152,3055.6,3055.4,1.39294895]
[1644912415817,0.00175152,3055.6,3055.4,0.3]
[1644912415818,1.05406556,3055.6,3055.4,0.3]
[1644912416016,1.05406556,3055.6,3055.2,1.83234171]
[1644912416216,1.05406556,3055.6,3055.3,1.02647254]
[1644912416819,1.35406556,3055.6,3055.3,1.84477304]
[1644912417019,1.05231404,3055.5,3055.3,1.84477304]
[1644912417268,1.05231404,3055.5,3055.4,0.3]
[1644912417464,1.05231404,3055.5,3055.3,1.32647254]
[1644912417668,0.82571246,3055.6,3055.3,1.32647254]
[1644912417865,0.82005152,3055.6,3055.3,1.32647254]
[1644912418065,1.05517446,3055.5,3055.3,0.3]
[1644912418268,0.81834,3055.3,3054.8,0.1635]
[1644912418466,0.00345644,3055.2,3054.4,3.5]
[1644912418672,0.00741246,3055.6,3054.4,3.5]
[1644912418673,1.05522591,3055.4,3054.4,3.5]
[1644912418867,0.00741246,3055.6,3054.3,1.2246]
[1644912418868,1.05176947,3055.3,3054.3,1.2246]
[1644912419067,0.30345644,3055.3,3054.7,0.873425]
[1644912419268,0.00566094,3055.1,3054.7,0.873425]
[1644912419466,0.82406094,3055.1,3054.7,0.81837]
[1644912419666,0.00345644,3055.0,3054.7,0.81837]
[1644912419867,0.00566094,3055.1,3054.2,0.5]
[1644912419868,0.00911738,3055.1,3054.2,0.5]
[1644912420069,0.00911738,3055.1,3054.0,1.1307]
[1644912420272,0.00911738,3055.1,3054.5,0.95594379]
[1644912420274,1.05297812,3055.1,3054.5,0.95594379]
[1644912420467,0.00566094,3054.8,3054.5,0.95594379]
[1644912420670,0.82416094,3054.8,3054.5,0.95594379]
[1644912420917,0.82761738,3054.8,3054.5,0.95594379]
[1644912421118,0.3,3054.7,3054.5,0.95594379]
[1644912421721,0.3,3054.7,3054.2,2.26693914]
[1644912421722,0.81853,3054.5,3054.2,2.26693914]
[1644912421917,0.00345644,3054.4,3053.8,9.81797857]
[1644912422116,0.00345644,3054.4,3053.8,8.62317857]
[1644912422317,0.00345644,3054.6,3053.8,9.15174273]
[1644912422517,0.00566094,3054.8,3053.8,12.69820603]
[1644912422718,0.00345644,3055.0,3053.8,12.69820603]
[1644912422719,0.00345644,3055.0,3053.9,0.81856]
[1644912422921,0.00345644,3055.0,3054.4,1.14702695]
[1644912422922,0.00566057,3054.6,3054.4,1.14702695]
[1644912423117,0.00566057,3054.6,3053.8,7.66955805]
[1644912423318,0.00566057,3054.6,3053.8,7.89733262]
[1644912423519,0.00566057,3054.6,3053.8,8.94194606]
[1644912423718,0.00566057,3054.6,3053.8,8.64438849]
[1644912423918,0.82209644,3054.8,3053.8,8.64438849]
[1644912424121,0.82209644,3054.8,3054.1,1.19374051]
[1644912424122,0.00566057,3054.6,3054.1,1.19374051]
[1644912424322,0.81859,3054.5,3054.1,1.19374051]
[1644912424518,0.00345644,3054.4,3053.8,9.08543224]
[1644912424770,0.00345644,3054.4,3053.8,9.0015404]
[1644912424976,1.12220644,3054.4,3053.8,9.21651001]
[1644912425171,1.12220644,3054.4,3053.8,9.43086747]
[1644912425372,0.01295578,3054.2,3053.8,4.2719208]
[1644912425576,5.6,3054.0,3053.8,0.21382811]
[1644912425773,0.393,3053.9,3053.8,0.42733683]
[1644912425970,0.30345644,3054.0,3053.8,0.42733683]
[1644912426169,0.30345644,3054.0,3053.8,0.64081302]
[1644912426170,0.00345644,3054.0,3053.8,0.64081302]
[1644912426369,0.00345644,3054.0,3053.8,0.85351145]
[1644912426772,1.1914822,3054.0,3053.8,1.06585205]
[1644912427171,1.1914822,3054.0,3053.8,1.27761894]
[1644912427172,0.8189,3053.9,3053.8,1.27761894]
[1644912427371,1.1189,3053.9,3053.8,1.489374]
[1644912427570,1.1189,3053.9,3053.8,1.70102851]
[1644912427773,2.1189,3053.9,3053.8,1.70102851]
[1644912427971,2.1189,3053.9,3053.8,1.91230154]
[1644912428176,1.1189,3053.9,3053.8,2.12294171]
[1644912428425,5.6,3053.8,3053.7,15.75223034]
[1644912428625,7.42099369,3053.8,3053.7,1.98752722]
[1644912428831,7.42099369,3053.8,3052.4,0.5]
[1644912428832,0.61091591,3053.5,3052.4,0.5]
[1644912429025,0.81914,3053.2,3052.4,0.5]
[1644912429225,2.184282,3053.2,3052.6,0.94649511]
[1644912429424,1.98055592,3053.2,3052.6,0.94649511]
[1644912429625,0.81916,3053.1,3052.6,0.94649511]
[1644912429825,0.61777903,3053.1,3052.6,0.94649511]
[1644912430026,0.41710189,3053.1,3052.6,1.24649511]
[1644912430228,0.41710189,3053.1,3052.7,0.00913323]
[1644912430425,0.21834106,3053.1,3052.7,0.00913323]
[1644912430628,0.02107365,3053.1,3052.7,0.00913323]
[1644912431028,1.93831,3053.2,3052.6,0.94649511]
[1644912431029,1.76229367,3053.2,3052.6,0.94649511]
[1644912431327,2.44183513,3053.2,3052.7,0.00913842]
[1644912431525,0.62287144,3053.1,3052.7,0.00913842]
[1644912431826,0.42742866,3053.1,3052.7,0.00913842]
[1644912432270,0.23489287,3053.1,3052.5,0.7371284]
[1644912432467,0.04429113,3053.1,3052.7,0.00913842]
[1644912432668,1.59666307,3053.2,3052.7,0.00913842]
[1644912433067,1.40912211,3053.2,3052.7,0.00913842]
[1644912433269,1.40912211,3053.2,3052.8,0.98272447]
[1644912433270,0.63296459,3053.1,3052.8,0.98272447]
[1644912433669,0.45023214,3053.1,3052.8,0.99186277]
[1644912433869,0.26756475,3053.1,3052.8,0.99186277]
[1644912434270,0.08539418,3053.1,3052.8,0.99186277]
[1644912434468,1.31247584,3053.2,3052.8,0.99186277]
[1644912434668,1.31247584,3053.2,3052.8,0.98272447]
[1644912434870,1.13228368,3053.2,3052.8,0.99185559]
[1644912435071,0.81916,3053.1,3052.8,0.99185559]